fUSD/lending_fUSD_20241003
["ID","MTS","AMOUNT","RATE_DAILY","PERIOD"]
[339788602,1727987493617,-1822.29,0.00033972,120]
[339788603,1727987493626,-696.33,0.00033972,120]
[339788604,1727987493636,-2184.089244,0.00033972,7]
[339788605,1727987493645,-500.0,0.00033972,120]
[339788606,1727987493657,-500.0,0.00033972,120]
[339788607,1727987493666,-1595.23,0.00033972,120]
[339788608,1727987493675,-500.0,0.00033972,120]
[339788609,1727987493685,-1676.96,0.00033972,120]
[339788610,1727987493695,-2184.089244,0.00033972,7]
[339788611,1727987493704,-602.51,0.00033972,120]
[339788612,1727987493714,-1430.65,0.00033972,120]
[339788613,1727987493723,-500.0,0.00033972,120]
[339788614,1727987493733,-10000.0,0.00033972,7]
[339788615,1727987493742,-500.0,0.00033972,120]
[339788616,1727987493751,-1022.58,0.00033972,120]
[339788617,1727987493761,-534.34,0.00033972,120]
[339788618,1727987493770,-10000.0,0.00033972,7]
[339788619,1727987493779,-572.51,0.00033972,120]
[339788620,1727987493789,-500.0,0.00033972,120]
[339788621,1727987493798,-500.0,0.00033972,120]
[339788622,1727987493807,-743.36,0.00033972,120]
[339788623,1727987493817,-550.019495,0.00033972,120]
[339788624,1727987493826,-722.75,0.00033972,120]
[339788625,1727987493836,-10000.0,0.00033972,7]
[339788626,1727987493846,-500.0,0.00033972,120]
[339788627,1727987493858,-2933.87,0.00033972,120]
[339788628,1727987493868,-891.75,0.00033972,120]
[339788629,1727987493878,-500.0,0.00033972,120]
[339788630,1727987493888,-734.12,0.00033972,120]
[339788631,1727987493898,-10000.0,0.00033972,7]
[339788632,1727987493908,-500.0,0.00033972,120]
[339788633,1727987493917,-500.0,0.00033972,120]
[339788634,1727987493927,-500.0,0.00033972,120]
[339788635,1727987493937,-500.0,0.00033972,120]
[339788636,1727987493947,-830.44,0.00033972,120]
[339788637,1727987493956,-10000.0,0.00033972,7]
[339788638,1727987493966,-2736.92,0.00033972,120]
[339788639,1727987493975,-2840.63,0.00033972,120]
[339788640,1727987493985,-1668.6,0.00033972,120]
[339788641,1727987493994,-963.2,0.00033972,120]
[339788642,1727987494003,-3064.64,0.00033972,120]
[339788643,1727987494012,-500.0,0.00033972,120]
[339788644,1727987494021,-500.0,0.00033972,120]
[339788645,1727987494031,-500.0,0.00033972,120]
[339788646,1727987494040,-500.0,0.00033972,120]
[339788647,1727987494050,-895.53,0.00033972,120]
[339788648,1727987494059,-500.0,0.00033972,120]
[339788649,1727987494069,-594.854743,0.00033972,7]
[339788650,1727987494078,-603.25,0.00033972,120]
[339788651,1727987494088,-893.66,0.00033972,120]
[339788652,1727987494098,-1265.22,0.00033972,120]
[339788653,1727987494108,-648.93,0.00033972,120]
[339788654,1727987494117,-594.854743,0.00033972,7]
[339788655,1727987494127,-702.69,0.00033972,120]
[339788656,1727987494137,-912.75,0.00033972,120]
[339788657,1727987494146,-500.0,0.00033972,120]
[339788658,1727987494156,-500.0,0.00033972,120]
[339788659,1727987494166,-625.95,0.00033972,120]
[339788660,1727987494175,-500.0,0.00033972,120]
[339788661,1727987494185,-500.0,0.00033972,120]
[339788662,1727987494194,-500.0,0.00033972,120]
[339788663,1727987494204,-500.0,0.00033972,120]
[339788664,1727987494214,-589.87,0.00033972,120]
[339788665,1727987494223,-500.0,0.00033972,120]
[339788666,1727987494233,-904.15,0.00033972,120]
[339788667,1727987494242,-809.38,0.00033972,120]
[339788668,1727987494251,-500.0,0.00033972,120]
[339788669,1727987494261,-1583.67,0.00033972,120]
[339788670,1727987494271,-500.0,0.00033972,120]
[339788671,1727987494281,-500.0,0.00033972,120]
[339788672,1727987494291,-2849.48,0.00033972,120]
[339788673,1727987494300,-1559.78,0.00033972,120]
[339788674,1727987494310,-500.0,0.00033972,2]
[339788675,1727987494319,-526.9,0.00033972,120]
[339788676,1727987494329,-500.0,0.00033972,120]
[339788677,1727987494339,-522.66,0.00033972,120]
[339788678,1727987494348,-887.97,0.00033972,120]
[339788679,1727987494358,-608.69,0.00033972,120]
[339788680,1727987494367,-1196.23,0.00033972,120]
[339788681,1727987494376,-500.0,0.00033972,120]
[339788682,1727987494386,-1435.23,0.00033972,120]
[339788683,1727987494395,-871.817102,0.00033972,7]
[339788684,1727987494406,-1891.17,0.00033972,120]
[339788685,1727987494415,-151.0,0.00033972,7]
[339788686,1727987494425,-734.62,0.00033972,120]
[339788687,1727987494434,-500.0,0.00033972,5]
[339788688,1727987494444,-1907.44,0.00033972,120]
[339788689,1727987494453,-871.817102,0.00033972,7]
[339788690,1727987494463,-954.92,0.00033972,30]
[339788691,1727987494472,-760.37,0.00033972,120]
[339788692,1727987494481,-500.0,0.00033972,120]
[339788693,1727987494490,-1267.83,0.00033972,120]
[339788694,1727987494500,-1389.631609,0.00033972,7]
[339788695,1727987494510,-500.0,0.00033972,120]
[339788696,1727987494519,-500.0,0.00033972,120]
[339788697,1727987494528,-3152.28,0.00033972,120]
[339788698,1727987494538,-1389.631609,0.00033972,7]
[339788699,1727987494547,-2240.67,0.00033972,120]
[339788700,1727987494556,-500.0,0.00033972,120]
[339788701,1727987494566,-692.31,0.00033972,120]
[339788702,1727987494575,-4273.85,0.00033972,2]
[339788703,1727987494585,-500.0,0.00033972,120]
[339788704,1727987494595,-566.42,0.00033972,120]
[339788705,1727987494604,-500.0,0.00033972,120]
[339788706,1727987494613,-1375.15,0.00033972,120]
[339788707,1727987494623,-1352.94,0.00033972,120]
[339788708,1727987494632,-2143.59,0.00033972,120]
[339788709,1727987494644,-197.419055,0.00033972,7]
[339788710,1727987494653,-500.0,0.00033972,120]
[339788711,1727987494664,-500.0,0.00033972,120]
[339788712,1727987494674,-500.0,0.00033972,120]
[339788713,1727987494683,-197.419055,0.00033972,7]
[339788714,1727987494693,-500.0,0.00033972,120]
[339788715,1727987494703,-366.010612,0.00033972,7]
[339788716,1727987494712,-2552.25,0.00033972,120]
[339788717,1727987494721,-807.0,0.00033972,120]
[339788718,1727987494731,-1929.43,0.00033972,120]
[339788719,1727987494741,-500.0,0.00033972,120]
[339788720,1727987494750,-687.7,0.00033972,120]
[339788721,1727987494760,-500.0,0.00033972,120]
[339788722,1727987494769,-366.010612,0.00033972,7]
[339788723,1727987494778,-500.0,0.00033972,120]
[339788724,1727987494788,-685.66,0.00033972,120]
[339788725,1727987494798,-500.0,0.00033972,120]
[339788726,1727987494807,-500.0,0.00033972,120]
[339788727,1727987494817,-500.0,0.00033972,120]
[339788728,1727987494827,-500.0,0.00033972,120]
[339788729,1727987494836,-426.78146,0.00033972,7]
[339788730,1727987494848,-1124.73,0.00033972,120]
[339788731,1727987494857,-500.0,0.00033972,120]
[339788732,1727987494867,-687.49,0.00033972,120]
[339788733,1727987494876,-426.78146,0.00033972,7]
[339788734,1727987494886,-1267.04,0.00033972,120]
[339788735,1727987494895,-1073.96,0.00033972,120]
[339788736,1727987494905,-515.88,0.00033972,120]
[339788737,1727987494917,-500.0,0.00033972,120]
[339788738,1727987494931,-924.47,0.00033972,120]
[339788739,1727987494941,-3842.317748,0.00033972,7]
[339788740,1727987494950,-500.0,0.00033972,120]
[339788741,1727987494960,-3529.62,0.00033972,120]
[339788742,1727987494969,-500.0,0.00033972,120]
[339788743,1727987494978,-500.0,0.00033972,120]
[339788744,1727987494988,-3842.317748,0.00033972,7]
[339788745,1727987494998,-500.0,0.00033972,120]
[339788746,1727987495007,-2122.92,0.00033972,120]
[339788747,1727987495016,-500.0,0.00033972,120]
[339788748,1727987495025,-1443.8,0.00033972,120]
[339788749,1727987495035,-500.0,0.00033972,120]
[339788750,1727987495045,-598.1,0.00033972,120]
[339788751,1727987495129,-583.93,0.00033972,120]
[339788752,1727987495139,-1130.17,0.00033972,120]
[339788753,1727987495149,-500.0,0.00033972,120]
[339788754,1727987495159,-500.0,0.00033972,120]
[339788755,1727987495169,-500.0,0.00033972,120]
[339788756,1727987495178,-512.25,0.00033972,120]
[339788757,1727987495188,-739.66,0.00033972,120]
[339788758,1727987495197,-500.0,0.00033972,120]
[339788759,1727987495206,-2221.7,0.00033972,120]
[339788760,1727987495216,-500.0,0.00033972,120]
[339788761,1727987495224,-500.0,0.00033972,120]
[339788762,1727987495234,-500.0,0.00033972,120]
[339788763,1727987495243,-878.47,0.00033972,120]
[339788764,1727987495252,-753.47,0.00033972,120]
[339788765,1727987495262,-2105.23,0.00033972,120]
[339788766,1727987495271,-500.0,0.00033972,120]
[339788767,1727987495280,-880.23,0.00033972,120]
[339788768,1727987495291,-500.0,0.00033972,120]
[339788769,1727987495300,-202.66649057,0.00033972,120]
[339788770,1727987495311,-1101.24,0.00033972,120]
[339788771,1727987495320,-500.0,0.00033972,120]
[339788772,1727987495331,-1000.0,0.00033972,120]
[339788773,1727987495340,-594.49,0.00033972,120]
[339788774,1727987495349,-500.0,0.00033972,120]
[339788775,1727987495358,-500.0,0.00033972,120]
[339788776,1727987495368,-1746.33,0.00033972,120]
[339788777,1727987495378,-500.0,0.00033972,120]
[339788778,1727987495388,-983.59,0.00033972,120]
[339788779,1727987495399,-754.45,0.00033972,120]
[339788780,1727987495411,-1535.26,0.00033972,120]
[339788781,1727987495421,-889.14,0.00033972,120]
[339788782,1727987495431,-3156.06,0.00033972,120]
[339788783,1727987495440,-500.0,0.00033972,120]
[339788784,1727987495450,-2375.19,0.00033972,120]
[339788785,1727987495459,-640.32,0.00033972,120]
[339788786,1727987495468,-500.0,0.00033972,120]
[339788787,1727987495477,-500.0,0.00033972,120]
[339788788,1727987495486,-500.0,0.00033972,120]
[339788789,1727987495496,-580.84,0.00033972,120]
[339788790,1727987495505,-2171.15,0.00033972,120]
[339788791,1727987495514,-652.15,0.00033972,120]
[339788792,1727987495523,-970.9,0.00033972,120]
[339788793,1727987495532,-500.0,0.00033972,120]
[339788794,1727987495542,-576.98,0.00033972,120]
[339788795,1727987495551,-2322.76,0.00033972,120]
[339788796,1727987495560,-500.0,0.00033972,120]
[339788797,1727987495570,-2446.1,0.00033972,120]
[339788798,1727987495579,-500.0,0.00033972,120]
[339788799,1727987495588,-500.0,0.00033972,120]
[339788800,1727987495598,-569.39,0.00033972,120]
[339788801,1727987495607,-500.0,0.00033972,120]
[339788802,1727987495616,-865.83,0.00033972,120]
[339788803,1727987495626,-500.0,0.00033972,120]
[339788804,1727987495635,-500.0,0.00033972,120]
[339788805,1727987495644,-559.14,0.00033972,120]
[339788806,1727987495653,-526.15,0.00033972,120]
[339788807,1727987495664,-500.0,0.00033972,120]
[339788808,1727987495673,-500.0,0.00033972,120]
[339788809,1727987495682,-500.0,0.00033972,120]
[339788810,1727987495691,-500.0,0.00033972,120]
[339788811,1727987495700,-1022.47,0.00033972,120]
[339788812,1727987495709,-500.0,0.00033972,120]
[339788813,1727987495718,-1404.02,0.00033972,120]
[339788814,1727987495727,-500.0,0.00033972,120]
[339788815,1727987495736,-641.91,0.00033972,120]
[339788816,1727987495746,-377.59635071,0.00033972,120]
[339788817,1727987495755,-500.0,0.00033972,120]
[339788818,1727987495766,-926.29,0.00033972,120]
[339788819,1727987495775,-796.9,0.00033972,120]
[339788820,1727987495786,-2021.14,0.00033972,120]
[339788821,1727987495795,-500.0,0.00033972,120]
[339788822,1727987495806,-500.0,0.00033972,120]
[339788823,1727987495816,-500.0,0.00033972,120]
[339788824,1727987495825,-3420.05,0.00033972,120]
[339788825,1727987495835,-920.88,0.00033972,120]
[339788826,1727987495845,-500.0,0.00033972,120]
[339788827,1727987495856,-1014.09,0.00033972,120]
[339788828,1727987495865,-151.0,0.00033972,7]
[339788829,1727987495874,-585.28,0.00033972,120]
[339788830,1727987495883,-391.64292331,0.00033972,120]
[339788831,1727987495893,-1372.22,0.00033972,120]
[339788832,1727987495903,-501.73,0.00033972,120]
[339788833,1727987495914,-2342.53,0.00033972,120]
[339788834,1727987495923,-500.0,0.00033972,120]
[339788835,1727987495933,-503.33,0.00033972,120]
[339788836,1727987495943,-849.67,0.00033972,120]
[339788837,1727987495952,-619.95,0.00033972,120]
[339788838,1727987495962,-650.32,0.00033972,120]
[339788839,1727987495971,-151.0,0.00033972,7]
[339788840,1727987495980,-4513.04,0.00033972,120]
[339788841,1727987495990,-500.0,0.00033972,120]
[339788842,1727987495999,-697.86,0.00033972,120]
[339788843,1727987496008,-1906.45,0.00033972,120]
[339788844,1727987496018,-500.0,0.00033972,120]
[339788845,1727987496027,-269.982589,0.00033972,7]
[339788846,1727987496036,-500.0,0.00033972,120]
[339788847,1727987496046,-500.0,0.00033972,120]
[339788848,1727987496056,-1342.8,0.00033972,120]
[339788849,1727987496066,-4469.7,0.00033972,120]
[339788850,1727987496075,-2820.31,0.00033972,120]
[339788851,1727987496085,-269.982589,0.00033972,7]
[339788852,1727987496095,-586.293285,0.00033972,7]
[339788853,1727987496104,-1714.59,0.00033972,120]
[339788854,1727987496114,-999.0,0.00033972,120]
[339788855,1727987496123,-586.293285,0.00033972,7]
[339788856,1727987496132,-1567.97,0.00033972,120]
[339788857,1727987496142,-858.96,0.00033972,120]
[339788858,1727987496151,-1071.24,0.00033972,120]
[339788859,1727987496160,-500.0,0.00033972,120]
[339788860,1727987496169,-500.0,0.00033972,120]
[339788861,1727987496179,-1083.26,0.00033972,120]
[339788862,1727987496188,-1923.73,0.00033972,120]
[339788863,1727987496198,-3953.73,0.00033972,120]
[339788864,1727987496207,-500.0,0.00033972,120]
[339788865,1727987496216,-646.54,0.00033972,120]
[339788866,1727987496225,-1541.86,0.00033972,120]
[339788867,1727987496234,-500.0,0.00033972,120]
[339788868,1727987496244,-825.35,0.00033972,120]
[339788869,1727987496254,-2326.51,0.00033972,120]
[339788870,1727987496264,-160.0,0.00033972,7]
[339788871,1727987496273,-1401.87,0.00033972,120]
[339788872,1727987496282,-500.0,0.00033972,120]
[339788873,1727987496293,-8162.3,0.00033972,120]
[339788874,1727987496302,-500.0,0.00033972,120]
[339788875,1727987496311,-500.0,0.00033972,120]
[339788876,1727987496322,-2202.86,0.00033972,3]
[339788877,1727987496331,-160.0,0.00033972,7]
[339788878,1727987496341,-1721.6,0.00033972,120]
[339788879,1727987496351,-462.10746523,0.00033972,120]
[339788880,1727987496360,-1824.09,0.00033972,120]
[339788881,1727987496373,-500.0,0.00033972,120]
[339788882,1727987496383,-500.0,0.00033972,120]
[339788883,1727987496393,-797.25,0.00033972,120]
[339788884,1727987496402,-3694.14,0.00033972,120]
[339788885,1727987496412,-648.29,0.00033972,120]
[339788886,1727987496421,-1962.84,0.00033972,120]
[339788887,1727987496431,-500.0,0.00033972,120]
[339788888,1727987496440,-770.99,0.00033972,120]
[339788889,1727987496450,-1812.58,0.00033972,120]
[339788890,1727987496459,-1106.97,0.00033972,120]
[339788891,1727987496468,-995.24,0.00033972,120]
[339788892,1727987496477,-1103.780855,0.00033972,7]
[339788893,1727987496487,-1533.42,0.00033972,120]
[339788894,1727987496496,-500.0,0.00033972,120]
[339788895,1727987496505,-1245.45,0.00033972,120]
[339788896,1727987496514,-205.761716,0.00033972,7]
[339788897,1727987496526,-2708.28,0.00033972,120]
[339788898,1727987496536,-1103.780855,0.00033972,7]
[339788899,1727987496546,-1028.68,0.00033972,120]
[339788900,1727987496556,-919.76,0.00033972,120]
[339788901,1727987496566,-500.0,0.00033972,120]
[339788902,1727987496575,-2392.87,0.00033972,120]
[339788903,1727987496585,-500.0,0.00033972,120]
[339788904,1727987496594,-205.761716,0.00033972,7]
[339788905,1727987496604,-645.31955922,0.00033972,120]
[339788906,1727987496614,-1219.91,0.00033972,120]
[339788907,1727987496624,-500.0,0.00033972,120]
[339788908,1727987496633,-1971.05,0.00033972,120]
[339788909,1727987496641,-967.14,0.00033972,120]
[339788910,1727987496650,-500.0,0.00033972,120]
[339788911,1727987496661,-500.0,0.00033972,120]
[339788912,1727987496670,-11039.47,0.00033972,120]
[339788913,1727987496679,-647.95,0.00033972,120]
[339788914,1727987496688,-1835.01,0.00033972,120]
[339788915,1727987496698,-500.0,0.00033972,120]
[339788916,1727987496707,-1066.51,0.00033972,120]
[339788917,1727987496717,-2065.61,0.00033972,120]
[339788918,1727987496726,-500.0,0.00033972,120]
[339788919,1727987496736,-2054.911659,0.00033972,7]
[339788920,1727987496746,-2041.33,0.00033972,120]
[339788921,1727987496755,-500.0,0.00033972,120]
[339788922,1727987496764,-500.0,0.00033972,120]
[339788923,1727987496774,-810.170864,0.00033972,7]
[339788924,1727987496783,-2054.911659,0.00033972,7]
[339788925,1727987496791,-701.71,0.00033972,120]
[339788926,1727987496801,-512.38,0.00033972,120]
[339788927,1727987496811,-500.0,0.00033972,120]
[339788928,1727987496821,-810.170864,0.00033972,7]
[339788929,1727987496830,-527.76,0.00033972,120]
[339788930,1727987496839,-500.0,0.00033972,120]
[339788931,1727987496853,-500.0,0.00033972,120]
[339788932,1727987496865,-527.0,0.00033972,120]
[339788933,1727987496875,-1302.4,0.00033972,120]
[339788934,1727987496884,-379.544111,0.00033972,7]
[339788935,1727987496895,-500.0,0.00033972,120]
[339788936,1727987496904,-1041.18,0.00033972,120]
[339788937,1727987496913,-968.42,0.00033972,120]
[339788938,1727987496924,-379.544111,0.00033972,7]
[339788939,1727987496933,-500.0,0.00033972,120]
[339788940,1727987496942,-500.0,0.00033972,120]
[339788941,1727987496952,-1510.82,0.00033972,120]
[339788942,1727987496961,-2058.43,0.00033972,120]
[339788943,1727987496970,-155.688258,0.00033972,7]
[339788944,1727987496980,-2566.99,0.00033972,120]
[339788945,1727987496989,-1123.06,0.00033972,120]
[339788946,1727987496999,-1635.85,0.00033972,120]
[339788947,1727987497008,-500.0,0.00033972,120]
[339788948,1727987497018,-155.688258,0.00033972,7]
[339788949,1727987497028,-500.52,0.00033972,120]
[339788950,1727987497038,-1766.39,0.00033972,120]
[339788951,1727987497047,-1143.448231,0.00033972,7]
[339788952,1727987497055,-500.0,0.00033972,120]
[339788953,1727987497065,-1421.18,0.00033972,120]
[339788954,1727987497074,-2301.76,0.00033972,120]
[339788955,1727987497084,-1143.448231,0.00033972,7]
[339788956,1727987497093,-500.0,0.00033972,120]
[339788957,1727987497103,-1093.77,0.00033972,120]
[339788958,1727987497112,-500.0,0.00033972,120]
[339788959,1727987497121,-2041.08,0.00033972,120]
[339788960,1727987497131,-500.0,0.00033972,120]
[339788961,1727987497140,-1056.72,0.00033972,120]
[339788962,1727987497149,-500.0,0.00033972,120]
[339788963,1727987497160,-500.0,0.00033972,120]
[339788964,1727987497170,-575.99,0.00033972,120]
[339788965,1727987497179,-500.0,0.00033972,120]
[339788966,1727987497188,-4824.18,0.00033972,120]
[339788967,1727987497198,-2539.88,0.00033972,120]
[339788968,1727987497207,-500.0,0.00033972,120]
[339788969,1727987497215,-153.765901,0.00033972,7]
[339788970,1727987497225,-843.366894,0.00033972,7]
[339788971,1727987497235,-1031.81,0.00033972,120]
[339788972,1727987497244,-153.765901,0.00033972,7]
[339788973,1727987497253,-1058.32,0.00033972,120]
[339788974,1727987497263,-843.366894,0.00033972,7]
[339788975,1727987497273,-500.0,0.00033972,120]
[339788976,1727987497283,-500.0,0.00033972,120]
[339788977,1727987497292,-2770.27,0.00033972,120]
[339788978,1727987497302,-500.0,0.00033972,120]
[339788979,1727987497311,-500.0,0.00033972,120]
[339788980,1727987497320,-2126.28,0.00033972,120]
[339788981,1727987497329,-500.0,0.00033972,120]
[339788982,1727987497339,-3109.58,0.00033972,120]
[339788983,1727987497348,-500.0,0.00033972,120]
[339788984,1727987497358,-1989.39,0.00033972,120]
[339788985,1727987497367,-2838.83,0.00033972,120]
[339788986,1727987497377,-2489.9,0.00033972,120]
[339788987,1727987497386,-500.0,0.00033972,120]
[339788988,1727987497395,-2454.73,0.00033972,120]
[339788989,1727987497408,-1539.86,0.00033972,120]
[339788990,1727987497417,-1548.63,0.00033972,120]
[339788991,1727987497427,-751.5,0.00033972,120]
[339788992,1727987497437,-1135.51,0.00033972,120]
[339788993,1727987497447,-500.0,0.00033972,120]
[339788994,1727987497456,-26307.75,0.00033972,120]
[339788995,1727987497465,-1359.32,0.00033972,120]
[339788996,1727987497475,-2373.28,0.00033972,120]
[339788997,1727987497484,-920.13,0.00033972,120]
[339788998,1727987497493,-723.9,0.00033972,120]
[339788999,1727987497503,-500.0,0.00033972,120]
[339789000,1727987497512,-683.05,0.00033972,120]
[339789001,1727987497521,-500.0,0.00033972,120]
[339789002,1727987497530,-1328.33,0.00033972,120]
[339789003,1727987497540,-500.0,0.00033972,120]
[339789004,1727987497549,-500.0,0.00033972,120]
[339789005,1727987497559,-500.0,0.00033972,120]
[339789006,1727987497568,-1718.99,0.00033972,120]
[339789007,1727987497577,-500.0,0.00033972,120]
[339789008,1727987497587,-2515.59,0.00033972,120]
[339789009,1727987497596,-953.41,0.00033972,120]
[339789010,1727987497606,-2264.01,0.00033972,120]
[339789011,1727987497615,-876.22,0.00033972,120]
[339789012,1727987497625,-1281.35,0.00033972,120]
[339789013,1727987497635,-2588.02,0.00033972,120]
[339789014,1727987497644,-1057.1,0.00033972,120]
[339789015,1727987497654,-366.08941306,0.00033972,120]
[339789016,1727987497664,-1543.66,0.00033972,120]
[339789017,1727987497673,-567.28,0.00033972,120]
[339789018,1727987497683,-1173.73,0.00033972,120]
[339789019,1727987497692,-500.0,0.00033972,120]
[339789020,1727987497702,-622.45,0.00033972,120]
[339789021,1727987497711,-831.03,0.00033972,120]
[339789022,1727987497721,-574.46,0.00033972,120]
[339789023,1727987497730,-500.0,0.00033972,120]
[339789024,1727987497740,-151.0,0.00033972,7]
[339789025,1727987497750,-999.57,0.00033972,120]
[339789026,1727987497759,-605.72,0.00033972,120]
[339789027,1727987497769,-500.0,0.00033972,120]
[339789028,1727987497778,-656.14,0.00033972,24]
[339789029,1727987497787,-1059.55,0.00033972,120]
[339789030,1727987497797,-2557.98,0.00033972,120]
[339789031,1727987497806,-500.0,0.00033972,120]
[339789032,1727987497816,-1114.36,0.00033972,120]
[339789033,1727987497826,-985.85,0.00033972,120]
[339789034,1727987497836,-2619.08,0.00033972,120]
[339789035,1727987497847,-2196.8,0.00033972,120]
[339789036,1727987497858,-623.45,0.00033972,120]
[339789037,1727987497868,-1368.57,0.00033972,120]
[339789038,1727987497877,-534.46,0.00033972,120]
[339789039,1727987497887,-1760.97,0.00033972,120]
[339789040,1727987497898,-4833.89,0.00033972,120]
[339789041,1727987497908,-1036.03,0.00033972,120]
[339789042,1727987497917,-613.95,0.00033972,120]
[339789043,1727987497928,-1437.23,0.00033972,120]
[339789044,1727987497939,-1295.57,0.00033972,120]
[339789045,1727987497948,-581.64,0.00033972,120]
[339789046,1727987497957,-1100.59,0.00033972,120]
[339789047,1727987497966,-500.0,0.00033972,120]
[339789048,1727987497975,-1584.05,0.00033972,120]
[339789049,1727987497986,-500.0,0.00033972,120]
[339789050,1727987497995,-1739.53,0.00033972,120]
[339789051,1727987498004,-780.59,0.00033972,120]
[339789052,1727987498014,-500.0,0.00033972,120]
[339789053,1727987498023,-10179.37,0.00033972,120]
[339789054,1727987498033,-567.89,0.00033972,120]
[339789055,1727987498043,-1002.66,0.00033972,120]
[339789056,1727987498052,-859.91,0.00033972,120]
[339789057,1727987498061,-504.47,0.00033972,120]
[339789058,1727987498071,-8270.07,0.00033972,21]
[339789059,1727987498080,-4586.08,0.00033972,120]
[339789060,1727987498090,-669.41,0.00033972,120]
[339789061,1727987498099,-1138.44,0.00033972,120]
[339789062,1727987498108,-631.12,0.00033972,120]
[339789063,1727987498118,-2304.02,0.00033972,120]
[339789064,1727987498128,-811.67,0.00033972,120]
[339789065,1727987498137,-500.0,0.00033972,120]
[339789066,1727987498147,-536.29,0.00033972,120]
[339789067,1727987498159,-994.04,0.00033972,120]
[339789068,1727987498168,-500.0,0.00033972,120]
[339789069,1727987498177,-1256.67,0.00033972,120]
[339789070,1727987498186,-1487.03,0.00033972,120]
[339789071,1727987498195,-151.0,0.00033973,7]
[339789072,1727987498205,-2251.5019805,0.00033998,7]
[339789073,1727987498214,-3007.50576663,0.00033998,7]
[339789074,1727987498224,-2899.87242423,0.00033998,7]
[339789075,1727987498233,-50000.0,0.00034,34]
[339789076,1727987498243,-799.0,0.00034069,5]
[339789077,1727987498252,-2110.0,0.00034198,2]
[339789078,1727987498261,-25749.364161,0.00034223,2]
[339789079,1727987498271,-1876.5451949,0.00034223,2]
[339789080,1727987498280,-500.0,0.00034246,120]
[339789081,1727987498290,-900.0,0.00034246,7]
[339789082,1727987498299,-1300.0,0.00034246,7]
[339789083,1727987498308,-151.0,0.00034246,7]
[339789084,1727987498318,-151.0,0.00034246,7]
[339789085,1727987498327,-151.0,0.00034246,7]
[339789086,1727987498336,-197.079853,0.00034246,7]
[339789087,1727987498346,-151.0,0.00034246,7]
[339789088,1727987498355,-280.497714,0.00034246,7]
[339789089,1727987498365,-242.666669,0.00034246,7]
[339789090,1727987498375,-242.666669,0.00034246,7]
[339789091,1727987498384,-151.0,0.00034246,7]
[339789092,1727987498393,-151.0,0.00034246,7]
[339789093,1727987498403,-151.0,0.00034246,7]
[339789094,1727987498414,-380.037178,0.00034246,7]
[339789095,1727987498423,-380.037178,0.00034246,7]
[339789096,1727987498433,-280.389785,0.00034246,7]
[339789097,1727987498442,-280.389785,0.00034246,7]
[339789098,1727987498451,-305.552585,0.00034246,7]
[339789099,1727987498460,-305.552585,0.00034246,7]
[339789100,1727987498469,-3436.547188,0.00034246,7]
[339789101,1727987498479,-3436.547188,0.00034246,7]